bitfinex-derivatives/quotes_BTCF0:USTF0_20250919
["timestamp","ask_amount","ask_price","bid_price","bid_amount"]
[1758277145158,0.79169687,116560.0,116550.0,1.54521393]
[1758277146053,0.002,116560.0,116550.0,1.54521393]
[1758277146259,0.78248,116560.0,116550.0,1.2827657]
[1758277146457,0.78248,116560.0,116550.0,1.54521393]
[1758277146661,0.78248,116560.0,116550.0,1.55387142]
[1758277146858,0.78048,116560.0,116550.0,1.55487142]
[1758277147465,0.78048,116560.0,116550.0,1.80787142]
[1758277149472,0.8662283,116560.0,116550.0,1.80787142]
[1758277163282,0.85228578,116560.0,116550.0,1.80787142]
[1758277163771,0.0857483,116560.0,116550.0,2.07031965]
[1758277163979,0.8659483,116560.0,116550.0,1.82031965]
[1758277167276,0.8659483,116560.0,116550.0,1.55787142]
[1758277167476,0.8659483,116560.0,116550.0,1.82031965]
[1758277170282,0.8659483,116560.0,116550.0,1.55787142]
[1758277173182,0.85200617,116560.0,116550.0,1.55787142]
[1758277177585,0.85200617,116560.0,116550.0,1.46345823]
[1758277177887,1.3858644,116560.0,116550.0,0.16021]
[1758277179387,1.1358644,116560.0,116550.0,0.16021]
[1758277180287,0.09321617,116560.0,116550.0,0.16021]
[1758277180480,0.85176617,116560.0,116550.0,1.54345823]
[1758277180681,0.85176617,116560.0,116550.0,1.23345823]
[1758277183583,0.85176617,116560.0,116550.0,1.52345823]
[1758277183785,0.85176617,116560.0,116550.0,1.60921353]
[1758277183985,0.85176617,116560.0,116550.0,1.52345823]
[1758277188389,0.85176617,116560.0,116550.0,1.60921363]
[1758277188590,0.85176617,116560.0,116550.0,1.52345823]
[1758277192191,0.85176617,116560.0,116550.0,1.60921363]
[1758277193389,1.1361944,116560.0,116550.0,0.97101]
[1758277193589,1.3929344,116560.0,116550.0,0.08721]
[1758277194786,1.3929344,116560.0,116550.0,0.02721]
[1758277194985,2.01618263,116560.0,116550.0,0.004]
[1758277195786,2.2788543,116560.0,116550.0,0.004]
[1758277196896,2.2788543,116560.0,116540.0,0.0001]
[1758277196897,0.1206453,116550.0,116540.0,0.0001]
[1758277197190,3.34640113,116550.0,116540.0,1e-07]
[1758277198194,3.08387842,116550.0,116540.0,1e-07]
[1758277198592,0.1148175,116520.0,116510.0,0.01583128]
[1758277198898,1.78050292,116520.0,116510.0,0.03711128]
[1758277199193,1.41239292,116520.0,116510.0,0.80077128]
[1758277199591,1.41243292,116520.0,116510.0,0.80077128]
[1758277199794,0.8873875,116520.0,116510.0,1.06329399]
[1758277199994,1.14991021,116520.0,116510.0,1.06329399]
[1758277200486,0.37003021,116520.0,116510.0,1.42409399]
[1758277200687,1.14991021,116520.0,116510.0,1.42409399]
[1758277201095,1.14991021,116520.0,116510.0,1.43109399]
[1758277201396,1.14991021,116520.0,116510.0,1.16857128]
[1758277201397,1.41243292,116520.0,116510.0,1.16857128]
[1758277201590,1.41243292,116520.0,116510.0,1.16157128]
[1758277201795,1.41343292,116520.0,116510.0,1.16757128]
[1758277202088,2.29406563,116520.0,116510.0,0.19183128]
[1758277202294,2.03154292,116520.0,116510.0,0.55183128]
[1758277202795,2.03154292,116520.0,116510.0,0.87183128]
[1758277202994,2.03154292,116520.0,116510.0,0.68183128]
[1758277203193,2.03154292,116520.0,116510.0,0.87183128]
[1758277203598,2.03154292,116520.0,116510.0,0.91057646]
[1758277203793,1.77423292,116520.0,116510.0,0.92423646]
[1758277203996,1.77423292,116520.0,116510.0,1.54755917]
[1758277203997,0.37103021,116520.0,116510.0,1.54755917]
[1758277204199,1.15095021,116520.0,116510.0,1.54755917]
[1758277206989,1.15095021,116520.0,116510.0,1.53009399]
[1758277207188,1.15826021,116520.0,116510.0,1.23263128]
[1758277207394,1.42078292,116520.0,116510.0,0.02183128]
[1758277207596,0.8957375,116520.0,116510.0,0.02183128]
[1758277207802,1.42078292,116520.0,116510.0,0.23183128]
[1758277208697,1.42078292,116520.0,116510.0,0.91311128]
[1758277209389,1.15103021,116520.0,116510.0,1.18929399]
[1758277209791,1.15099021,116520.0,116510.0,1.18929399]
[1758277211504,0.8884675,116520.0,116510.0,1.55009399]
[1758277211705,1.15099021,116520.0,116510.0,1.55009399]
[1758277220603,0.001,116520.0,116510.0,1.88587849]
[1758277220806,0.78096,116520.0,116510.0,1.88587849]
[1758277231227,0.8667372,116520.0,116510.0,1.88587849]
[1758277232429,1.12925991,116520.0,116510.0,1.88587849]
[1758277233330,1.11531311,116520.0,116510.0,1.88587849]
[1758277233522,0.8527904,116520.0,116510.0,1.88587849]
[1758277235833,0.8527904,116520.0,116510.0,1.80009399]
[1758277236029,1.11531311,116520.0,116510.0,1.80009399]
[1758277237933,1.11531311,116520.0,116510.0,1.88587849]
[1758277239430,1.11531311,116520.0,116510.0,1.63587849]
[1758277240336,1.11531311,116520.0,116510.0,1.55009399]
[1758277243339,1.10136623,116520.0,116510.0,1.55009399]
[1758277245534,1.10136623,116520.0,116510.0,1.28757128]
[1758277245736,1.10136623,116520.0,116510.0,1.55009399]
[1758277246136,1.36388894,116520.0,116510.0,1.28757128]
[1758277248233,1.36388894,116520.0,116510.0,1.55009399]
[1758277248438,0.83884352,116520.0,116510.0,1.55009399]
[1758277248634,1.36388894,116520.0,116510.0,1.55009399]
[1758277248830,1.36388894,116520.0,116510.0,1.28757128]
[1758277249236,1.36388894,116520.0,116510.0,1.55009399]
[1758277249635,1.10136623,116520.0,116510.0,1.55009399]
[1758277251444,1.10136623,116520.0,116510.0,1.28757128]
[1758277251637,1.10136623,116520.0,116510.0,1.55009399]
[1758277254544,1.10136623,116520.0,116510.0,1.28757128]
[1758277254745,1.10136623,116520.0,116510.0,1.55009399]
[1758277255944,0.02104,116520.0,116510.0,1.63587849]
[1758277256256,0.77952,116520.0,116510.0,1.8984012]
[1758277256646,0.77952,116520.0,116510.0,1.63587849]
[1758277256845,0.8652971,116520.0,116510.0,1.63587849]
[1758277257755,0.8652971,116520.0,116510.0,1.63587475]
[1758277259760,0.77952,116520.0,116510.0,1.63587475]
[1758277266146,0.8652972,116520.0,116510.0,1.63587475]
[1758277269747,0.85135034,116520.0,116510.0,1.63587475]
[1758277269948,0.0857772,116520.0,116510.0,1.63587475]
[1758277270149,0.8651772,116520.0,116510.0,1.63587475]
[1758277273763,0.80156,116520.0,116510.0,0.50335578]
[1758277273962,0.107934,116530.0,116520.0,0.03537]
[1758277274262,0.887254,116530.0,116520.0,0.39617]
[1758277275562,0.887254,116530.0,116520.0,0.39817]
[1758277276461,0.887254,116530.0,116520.0,0.39917]
[1758277278654,0.887214,116530.0,116520.0,0.39917]
[1758277280163,1.93489939,116550.0,116540.0,0.03537]
[1758277280367,2.71609939,116550.0,116540.0,0.03537]
[1758277280556,2.71609939,116550.0,116540.0,0.65868897]
[1758277281049,2.71609939,116550.0,116540.0,0.39617]
[1758277281260,2.97861836,116550.0,116540.0,0.39617]
[1758277281960,2.98361836,116550.0,116540.0,0.39617]
[1758277282161,2.72109939,116550.0,116540.0,0.39617]
[1758277282357,2.98361836,116550.0,116540.0,0.39617]
[1758277282557,2.98661836,116550.0,116540.0,0.39717]
[1758277282967,2.98261836,116550.0,116540.0,0.39717]
[1758277283156,2.72009939,116550.0,116540.0,0.39717]
[1758277283458,2.97961836,116550.0,116540.0,0.39617]
[1758277283764,2.98161836,116550.0,116540.0,0.39617]
[1758277285573,2.96195407,116550.0,116540.0,0.39617]
[1758277290365,2.6994351,116550.0,116540.0,0.65868897]
[1758277290668,1.81032,116550.0,116540.0,0.99445147]
[1758277290867,0.003,116550.0,116540.0,0.99445147]
[1758277291062,0.78424,116550.0,116540.0,0.99445147]
[1758277292072,0.78324,116550.0,116540.0,0.99445147]
[1758277292271,0.78324,116550.0,116540.0,0.99645147]
[1758277292466,0.002,116550.0,116540.0,0.99645147]
[1758277292672,0.28712,116550.0,116540.0,0.99645147]
[1758277292974,0.28712,116550.0,116540.0,0.99945147]
[1758277293572,0.28512,116550.0,116540.0,1.00894731]
[1758277294272,0.28512,116550.0,116540.0,1.00794731]
[1758277294472,0.28512,116550.0,116540.0,1.00994731]
[1758277294473,0.28612,116550.0,116540.0,1.00994731]
[1758277295475,0.001,116550.0,116540.0,1.00994731]
[1758277295776,0.55612,116550.0,116540.0,1.00994731]
[1758277298475,0.001,116550.0,116540.0,1.00994731]
[1758277299279,0.001,116550.0,116540.0,0.75994731]
[1758277300478,0.001,116550.0,116540.0,1.27246628]
[1758277300679,0.001,116550.0,116540.0,1.44338628]
[1758277300882,0.001,116550.0,116540.0,1.18086731]
[1758277301086,0.001,116550.0,116540.0,1.44338628]
[1758277301380,0.001,116550.0,116540.0,1.18086731]
[1758277302173,0.001,116550.0,116540.0,1.44338628]
[1758277303484,0.001,116550.0,116540.0,1.96122731]
[1758277303786,0.001,116550.0,116540.0,1.18086731]
[1758277303978,0.001,116550.0,116540.0,1.96122731]
[1758277306290,0.001,116550.0,116540.0,1.96110731]
[1758277306589,0.001,116550.0,116540.0,3.13362628]
[1758277307279,0.001,116550.0,116540.0,2.87110731]
[1758277307587,0.001,116550.0,116540.0,2.87102731]
[1758277307986,0.001,116550.0,116540.0,2.09086731]
[1758277308187,0.001,116550.0,116540.0,2.87094731]
[1758277308991,0.001,116550.0,116540.0,2.09086731]
[1758277309292,0.001,116550.0,116540.0,2.60834834]
[1758277309489,0.001,116550.0,116540.0,2.87086731]
[1758277309992,0.001,116550.0,116540.0,2.88338628]
[1758277311091,0.001,116550.0,116540.0,2.88360628]
[1758277315392,0.001,116550.0,116540.0,2.10360628]
[1758277315698,0.001,116550.0,116540.0,2.88316628]
[1758277316901,0.001,116550.0,116540.0,2.10360628]
[1758277317294,0.001,116550.0,116540.0,2.88308628]
[1758277318499,0.001,116550.0,116540.0,2.10360628]
[1758277318698,0.001,116550.0,116540.0,2.88296628]
[1758277319400,0.001,116550.0,116540.0,2.10360628]
[1758277319599,0.001,116550.0,116540.0,2.88296628]
[1758277319898,0.001,116550.0,116540.0,3.14487688]
[1758277326003,0.001,116550.0,116540.0,3.50567688]
[1758277328710,0.001,116550.0,116540.0,3.6588801]
[1758277329505,0.0001,116570.0,116560.0,0.1202377]
[1758277329710,0.10589586,116580.0,116570.0,0.03449]
[1758277330012,0.02006046,116580.0,116570.0,1.86566276]
[1758277330516,0.83743851,116590.0,116580.0,0.03449]
[1758277330808,0.83743851,116590.0,116580.0,1.47992236]
[1758277331006,1.09975469,116590.0,116580.0,1.47992236]
[1758277331312,1.09975469,116590.0,116580.0,1.28634514]
[1758277331814,1.10575469,116590.0,116580.0,1.28634514]
[1758277332716,1.36250469,116590.0,116580.0,1.02402896]
[1758277333008,1.36250469,116590.0,116580.0,0.59131896]
[1758277334396,1.35750469,116590.0,116580.0,0.59131896]
[1758277335211,1.35850469,116590.0,116580.0,0.59131896]
[1758277335610,1.35850469,116590.0,116580.0,0.52258]
[1758277337807,1.62082087,116590.0,116580.0,0.52258]
[1758277338011,0.107443,116580.0,116570.0,0.4626601]
[1758277338203,0.63938536,116580.0,116570.0,0.4280701]
[1758277338599,0.1074504,116570.0,116560.0,0.39539]
[1758277338799,0.8907704,116570.0,116560.0,0.3608]
[1758277339012,1.41540276,116570.0,116560.0,0.3608]
[1758277339214,1.15308658,116570.0,116560.0,0.3608]
[1758277339622,1.15308658,116570.0,116560.0,0.38258]
[1758277340714,1.15408658,116570.0,116560.0,0.38458]
[1758277341414,1.15408658,116570.0,116560.0,0.38958]
[1758277341714,1.16276594,116570.0,116560.0,0.38958]
[1758277342409,0.37500658,116570.0,116560.0,0.38958]
[1758277342907,1.15408658,116570.0,116560.0,0.38958]
[1758277344311,0.37500658,116570.0,116560.0,0.38958]
[1758277344616,1.15412658,116570.0,116560.0,0.38958]
[1758277344917,1.15412658,116570.0,116560.0,0.02878]
[1758277345218,1.15412658,116570.0,116560.0,0.007]
[1758277345614,0.89584677,116570.0,116560.0,0.007]
[1758277345809,1.67496677,116570.0,116560.0,0.007]
[1758277347619,0.62500658,116570.0,116560.0,0.02986]
[1758277347818,1.40412658,116570.0,116560.0,0.02986]
[1758277352624,0.62500658,116570.0,116560.0,0.02986]
[1758277352824,1.40416658,116570.0,116560.0,0.02986]
[1758277353929,1.40416658,116570.0,116560.0,0.007]
[1758277354421,1.66648276,116570.0,116560.0,0.007]
[1758277354624,1.66648276,116570.0,116560.0,0.02986]
[1758277354819,1.40416658,116570.0,116560.0,0.02986]
[1758277357330,0.62500658,116570.0,116560.0,0.02986]
[1758277357533,1.40416658,116570.0,116560.0,0.02986]
[1758277359433,1.15416658,116570.0,116560.0,0.007]
[1758277360435,0.37500658,116570.0,116560.0,0.007]
[1758277360735,1.15416658,116570.0,116560.0,0.02986]
[1758277363833,1.41648276,116570.0,116560.0,0.007]
[1758277364135,1.41648276,116570.0,116560.0,0.02986]
[1758277366935,1.15416658,116570.0,116560.0,0.02986]
[1758277369657,0.37500658,116570.0,116560.0,0.0429]
[1758277369858,1.14988658,116570.0,116560.0,0.0429]
[1758277370752,1.15412658,116570.0,116560.0,0.02986]
[1758277374253,0.1084504,116570.0,116560.0,0.0429]
[1758277374444,1.14988658,116570.0,116560.0,0.0429]
[1758277376055,1.15412658,116570.0,116560.0,0.02986]
[1758277376858,0.37500658,116570.0,116560.0,0.02986]
[1758277377060,1.15412658,116570.0,116560.0,0.02986]
[1758277377759,0.37500658,116570.0,116560.0,0.02986]
[1758277378058,1.15412658,116570.0,116560.0,0.02986]
[1758277380262,1.15412658,116570.0,116560.0,0.007]
[1758277380956,1.41644276,116570.0,116560.0,0.007]
[1758277381261,1.77724276,116570.0,116560.0,0.007]
[1758277381460,2.28955894,116570.0,116560.0,0.007]
[1758277381648,2.02724276,116570.0,116560.0,0.007]
[1758277381853,0.98598255,116570.0,116560.0,0.007]
[1758277382055,1.76506255,116570.0,116560.0,0.007]
[1758277382457,0.98598255,116570.0,116560.0,0.007]
[1758277382661,1.76506255,116570.0,116560.0,0.007]
[1758277383163,1.83445221,116570.0,116560.0,0.007]
[1758277383562,1.83449221,116570.0,116560.0,0.007]
[1758277390258,1.05537221,116570.0,116560.0,0.007]
[1758277390464,1.83453221,116570.0,116560.0,0.007]
[1758277392670,1.05537221,116570.0,116560.0,0.007]
[1758277392860,1.83453221,116570.0,116560.0,0.007]
[1758277395062,1.97693221,116570.0,116560.0,0.007]
[1758277395253,1.83453221,116570.0,116560.0,0.007]
[1758277398166,0.0129,116560.0,116550.0,0.0001]
[1758277398376,0.1165749,116550.0,116540.0,0.0001]
[1758277398671,0.1088422,116540.0,116530.0,0.46714237]
[1758277398872,0.37133435,116540.0,116530.0,0.97704237]
[1758277399167,0.37133435,116540.0,116530.0,1.36704237]
[1758277399976,0.1088422,116540.0,116530.0,1.45281197]
[1758277400170,1.15049435,116540.0,116530.0,1.36704237]
[1758277400675,0.37133435,116540.0,116530.0,1.36704237]
[1758277400868,1.15049435,116540.0,116530.0,1.36704237]
[1758277401574,1.15149435,116540.0,116530.0,1.38404237]
[1758277412884,0.37233435,116540.0,116530.0,1.38404237]
[1758277413084,1.15145435,116540.0,116530.0,1.38404237]
[1758277414587,1.13750917,116540.0,116530.0,1.38404237]
[1758277416885,1.13750917,116540.0,116530.0,1.46981187]
[1758277420383,1.13750917,116540.0,116530.0,1.38404237]
[1758277425788,0.35838917,116540.0,116530.0,1.46981187]
[1758277426089,1.13746917,116540.0,116530.0,1.46981187]
[1758277426990,1.13746917,116540.0,116530.0,0.89981187]
[1758277427188,1.13746917,116540.0,116530.0,1.09981187]
[1758277427991,1.13746917,116540.0,116530.0,1.01404237]
[1758277431197,0.87497702,116540.0,116530.0,1.01404237]
[1758277431399,1.13746917,116540.0,116530.0,0.32324237]
[1758277433001,1.15713855,116540.0,116530.0,0.32324237]
[1758277439912,1.15713855,116540.0,116530.0,0.63324237]
[1758277441813,0.8946464,116540.0,116530.0,0.63324237]
[1758277442014,1.15713855,116540.0,116530.0,0.63324237]
[1758277443815,1.41966508,116540.0,116530.0,0.25324237]
[1758277446419,1.42697508,116540.0,116530.0,0.147]
[1758277446619,1.42697508,116540.0,116530.0,0.017]
[1758277446814,1.67697508,116540.0,116530.0,0.017]
[1758277447019,2.03777508,116540.0,116530.0,0.017]
[1758277450012,2.04624081,116540.0,116530.0,0.017]
[1758277454626,1.26716081,116540.0,116530.0,0.017]
[1758277456125,2.04604081,116540.0,116530.0,0.017]
[1758277460321,1.68524081,116540.0,116530.0,0.017]
[1758277460527,2.04604081,116540.0,116530.0,0.017]
[1758277470542,2.30855015,116540.0,116530.0,0.017]
[1758277471241,1.52967015,116540.0,116530.0,0.017]
[1758277471541,2.30847015,116540.0,116530.0,0.017]
[1758277479346,2.05847015,116540.0,116530.0,0.017]
[1758277489450,1.79596081,116540.0,116530.0,0.017]
[1758277491253,1.01716081,116540.0,116530.0,0.03975]
[1758277491454,1.79580081,116540.0,116530.0,0.03975]
[1758277501162,1.27078213,116540.0,116530.0,0.017]
[1758277501464,2.05831015,116540.0,116530.0,0.017]
[1758277501762,1.27078213,116540.0,116530.0,0.03859]
[1758277501954,1.79580081,116540.0,116530.0,0.03859]
[1758277503755,1.5333412,116540.0,116530.0,0.03859]
[1758277505775,1.5333412,116540.0,116530.0,0.017]
[1758277513583,0.7547012,116540.0,116530.0,0.017]
[1758277513782,1.5331412,116540.0,116530.0,0.017]
[1758277514379,1.5321412,116540.0,116530.0,0.012]
[1758277515278,0.1081495,116530.0,116520.0,0.02169]
[1758277515484,0.73150857,116530.0,116520.0,0.02159]
[1758277516584,0.73574857,116530.0,116520.0,0.02459]
[1758277517682,0.73674857,116530.0,116520.0,0.02659]
[1758277519486,0.37594857,116530.0,116520.0,0.02659]
[1758277519690,0.73674857,116530.0,116520.0,0.02659]
[1758277525990,1.51514857,116530.0,116520.0,0.02659]
[1758277527691,1.51514857,116530.0,116520.0,0.04058]
[1758277531496,0.73250857,116530.0,116520.0,0.04058]
[1758277531798,1.51086857,116530.0,116520.0,0.04058]
[1758277532105,0.73250857,116530.0,116520.0,0.04058]
[1758277532398,1.51086857,116530.0,116520.0,0.04058]
[1758277532704,1.51086857,116530.0,116520.0,0.56058]
[1758277536102,0.02338,116530.0,116520.0,0.8963569]
[1758277536302,0.77936,116530.0,116520.0,2.08227504]
[1758277536497,0.76541459,116530.0,116520.0,1.81971597]
[1758277539307,0.76541459,116530.0,116520.0,1.56971597]
[1758277542508,0.36799755,116540.0,116530.0,0.1214095]
[1758277542509,0.39037755,116540.0,116530.0,0.1214095]
[1758277542696,1.16869755,116540.0,116530.0,1.3722095]
[1758277543202,1.16869755,116540.0,116530.0,1.38077941]
[1758277543709,1.16869755,116540.0,116530.0,1.3722095]
[1758277544302,1.16969755,116540.0,116530.0,1.3722095]
[1758277544810,1.16969755,116540.0,116530.0,1.28644]
[1758277545307,1.16969755,116540.0,116530.0,1.29516063]
[1758277545512,1.16969755,116540.0,116530.0,1.28744]
[1758277546508,0.90713848,116540.0,116530.0,1.28744]
[1758277546808,1.16969755,116540.0,116530.0,1.28744]
[1758277549105,1.16969755,116540.0,116530.0,1.29588145]
[1758277551709,0.90713848,116540.0,116530.0,1.29588145]
[1758277551910,1.16969755,116540.0,116530.0,1.29588145]
[1758277552312,1.16969755,116540.0,116530.0,1.38165095]
[1758277553314,1.15002817,116540.0,116530.0,1.38165095]
[1758277554922,1.15002817,116540.0,116530.0,1.29588145]
[1758277555732,1.15002817,116540.0,116530.0,1.38165095]
[1758277555931,0.8874691,116540.0,116530.0,1.38165095]
[1758277556128,1.15002817,116540.0,116530.0,1.38165095]
[1758277558634,0.8874691,116540.0,116530.0,1.38165095]
[1758277558835,1.15002817,116540.0,116530.0,1.38165095]
[1758277560528,0.8874691,116540.0,116530.0,1.38165095]
[1758277560728,1.15002817,116540.0,116530.0,1.38165095]
[1758277562135,0.8874691,116540.0,116530.0,1.38165095]
[1758277562327,1.15002817,116540.0,116530.0,1.38165095]
[1758277563738,1.14993934,116540.0,116530.0,1.64412119]
[1758277568546,1.14993934,116540.0,116530.0,1.32412119]
[1758277569743,1.14993934,116540.0,116530.0,1.23835169]
[1758277574354,1.14993934,116540.0,116530.0,0.97588145]
[1758277574551,1.41240958,116540.0,116530.0,0.96744]
[1758277574753,1.41240958,116540.0,116530.0,1.22991024]
[1758277575255,1.14993934,116540.0,116530.0,1.22991024]
[1758277575456,1.41240958,116540.0,116530.0,1.22991024]
[1758277576348,1.41240958,116540.0,116530.0,0.97599193]
[1758277576552,1.41240958,116540.0,116530.0,1.23846217]
[1758277580850,1.41240958,116540.0,116530.0,0.97599193]
[1758277581057,1.41240958,116540.0,116530.0,1.23846217]
[1758277581351,1.41240958,116540.0,116530.0,1.53846217]
[1758277581547,1.41240958,116540.0,116530.0,1.52991024]
[1758277582349,0.8874691,116540.0,116530.0,1.52991024]
[1758277582549,1.41240958,116540.0,116530.0,1.52991024]
[1758277587167,1.41240958,116540.0,116530.0,1.26744]
[1758277589057,1.41240958,116540.0,116530.0,1.52991024]
[1758277592565,1.41240958,116540.0,116530.0,1.26744]
[1758277595769,1.41240958,116540.0,116530.0,1.52991024]
[1758277596063,1.41240958,116540.0,116530.0,1.26744]
[1758277596258,1.41240958,116540.0,116530.0,1.52991024]
[1758277596761,1.41240958,116540.0,116530.0,1.22991024]
[1758277597556,1.41240958,116540.0,116530.0,0.96744]
[1758277601762,1.41240958,116540.0,116530.0,1.22991024]
[1758277603568,1.41240958,116540.0,116530.0,0.96744]
[1758277608174,0.8874691,116540.0,116530.0,0.96744]
[1758277608473,0.1091491,116540.0,116530.0,0.96744]
[1758277608669,1.14989934,116540.0,116530.0,1.22991024]
[1758277608868,1.14989934,116540.0,116530.0,0.96744]
[1758277609070,1.14989934,116540.0,116530.0,1.22991024]
[1758277612172,0.8874291,116540.0,116530.0,1.22991024]
[1758277612381,0.8653691,116540.0,116530.0,1.31567974]
[1758277617167,0.8653623,116540.0,116530.0,1.31567974]
[1758277618074,0.8653623,116540.0,116530.0,1.65567974]
[1758277618280,0.001,116540.0,116530.0,2.16814998]
[1758277618579,0.77948,116540.0,116530.0,1.90567974]
[1758277621877,0.77948,116540.0,116530.0,1.88296974]
[1758277622783,0.77924,116540.0,116530.0,2.14543998]
[1758277624783,0.001,116540.0,116530.0,2.92367998]
[1758277625286,0.001,116540.0,116530.0,2.91074998]
[1758277625480,0.001,116540.0,116530.0,2.92367998]
[1758277625882,0.001,116540.0,116530.0,2.66113484]
[1758277631691,0.001,116540.0,116530.0,1.6204995]
[1758277631891,0.001,116540.0,116530.0,2.66109484]
[1758277633786,0.001,116540.0,116530.0,2.66113484]
[1758277634489,0.001,116540.0,116530.0,1.88289484]
[1758277634694,0.001,116540.0,116530.0,2.66117484]
[1758277636499,0.001,116540.0,116530.0,3.02197484]
[1758277638000,0.001,116540.0,116530.0,3.02189484]
[1758277639404,0.001,116540.0,116530.0,3.17509806]
[1758277640203,0.001,116540.0,116530.0,3.02189484]
[1758277646308,0.001,116540.0,116530.0,2.77189484]
[1758277646511,0.01990196,116550.0,116540.0,0.1210723]
[1758277646705,0.01990196,116550.0,116540.0,1.60426764]
[1758277647900,0.02190196,116550.0,116540.0,1.60526764]
[1758277649711,0.02490196,116550.0,116540.0,1.60526764]
[1758277652011,0.005,116550.0,116540.0,1.60526764]
[1758277652207,0.005,116550.0,116540.0,1.86766298]
[1758277652513,0.02255,116570.0,116560.0,0.1210576]
[1758277652710,0.02255,116570.0,116560.0,1.62425294]
[1758277653100,0.1082902,116570.0,116560.0,1.62425294]
[1758277653605,0.1182902,116570.0,116560.0,1.62425294]
[1758277654113,0.1182902,116570.0,116560.0,1.53850534]
[1758277654309,0.1222902,116570.0,116560.0,1.53950534]
[1758277655613,0.1222902,116570.0,116560.0,1.90030534]
[1758277656216,0.1122902,116570.0,116560.0,1.90030534]
[1758277656418,0.1122902,116570.0,116560.0,1.90330534]
[1758277656616,0.1122902,116570.0,116560.0,1.91200817]
[1758277657117,0.1082902,116570.0,116560.0,1.98137634]
[1758277657515,0.02255,116570.0,116560.0,2.06712394]
[1758277658419,0.1082902,116570.0,116560.0,2.06712394]
[1758277660620,0.02255,116570.0,116560.0,2.06712394]
[1758277661323,1.14890304,116580.0,116570.0,0.03531]
[1758277661523,1.14880304,116580.0,116570.0,0.96611]
[1758277662021,0.8864077,116580.0,116570.0,0.96611]
[1758277662524,0.8874077,116580.0,116570.0,0.96611]
[1758277663320,0.8893677,116580.0,116570.0,0.96611]
[1758277665418,0.8893677,116580.0,116570.0,1.22850534]
[1758277666023,0.8893677,116580.0,116570.0,0.96611]
[1758277666226,0.8893677,116580.0,116570.0,1.22850534]
[1758277666725,0.8893677,116580.0,116570.0,0.96611]
[1758277675132,0.8893677,116580.0,116570.0,1.22850534]
[1758277679238,0.8893677,116580.0,116570.0,0.96611]
[1758277679533,0.8893677,116580.0,116570.0,1.22850534]
[1758277679722,0.8893677,116580.0,116570.0,0.96611]
[1758277681131,1.15176304,116580.0,116570.0,0.96611]
[1758277684538,0.8893677,116580.0,116570.0,0.96611]
[1758277684746,1.15176304,116580.0,116570.0,0.96611]
[1758277687740,1.41398204,116580.0,116570.0,1.22841717]
[1758277689640,0.1112877,116580.0,116570.0,1.22841717]
[1758277689837,0.8892477,116580.0,116570.0,1.22841717]
[1758277690041,1.15155487,116580.0,116570.0,1.22841717]
[1758277691542,0.8892477,116580.0,116570.0,1.22841717]
[1758277691743,1.15155487,116580.0,116570.0,1.22841717]
[1758277692834,0.8892477,116580.0,116570.0,1.22841717]
[1758277696049,0.8892477,116580.0,116570.0,1.54841717]
[1758277698253,0.8892077,116580.0,116570.0,1.54841717]
[1758277699443,0.78092,116580.0,116570.0,1.81072434]
[1758277699636,0.8666529,116580.0,116570.0,1.89646464]
[1758277699847,0.78092,116580.0,116570.0,1.89646464]
[1758277700145,0.003,116580.0,116570.0,1.89646464]
[1758277700549,0.75516,116580.0,116570.0,1.89646464]
[1758277701453,0.003,116580.0,116570.0,2.14646464]
[1758277701752,0.7812,116580.0,116570.0,2.14646464]
[1758277702258,0.003,116580.0,116570.0,2.92462464]
[1758277702454,0.003,116580.0,116570.0,2.14646464]
[1758277702950,0.003,116580.0,116570.0,1.88415747]
[1758277703254,0.003,116580.0,116570.0,1.54841717]
[1758277703752,0.35104007,116580.0,116570.0,1.22841717]
[1758277703955,0.35104007,116580.0,116570.0,1.34841717]
[1758277705153,0.0887329,116580.0,116570.0,1.34841717]
[1758277706156,0.0887329,116580.0,116570.0,1.43415737]
[1758277707059,0.0887329,116580.0,116570.0,1.34841717]
[1758277708555,0.0887329,116580.0,116570.0,1.54841717]
[1758277711349,0.0887329,116580.0,116570.0,1.63415737]
[1758277714858,0.003,116580.0,116570.0,1.63415737]
[1758277715760,0.003,116580.0,116570.0,1.54841717]
[1758277716659,0.003,116580.0,116570.0,1.63415737]
[1758277718362,0.003,116580.0,116570.0,1.3718502]
[1758277718548,0.003,116580.0,116570.0,1.63415737]
[1758277720568,0.003,116580.0,116570.0,1.44415737]
[1758277720762,0.63550724,116580.0,116570.0,0.39611]
[1758277720961,0.88550724,116580.0,116570.0,0.39611]
[1758277721162,0.88550724,116580.0,116570.0,0.65841717]
[1758277721463,0.62320007,116580.0,116570.0,0.65841717]
[1758277722059,1.40140007,116580.0,116570.0,0.65841717]
[1758277723167,1.66370724,116580.0,116570.0,0.39611]
[1758277723462,1.40140007,116580.0,116570.0,0.39611]
[1758277724067,1.40140007,116580.0,116570.0,0.65841717]
[1758277724068,1.66370724,116580.0,116570.0,0.65841717]
[1758277724467,1.66370724,116580.0,116570.0,0.39611]
[1758277724669,1.66370724,116580.0,116570.0,0.65841717]
[1758277724967,1.40140007,116580.0,116570.0,0.65841717]
[1758277726573,0.62320007,116580.0,116570.0,0.65841717]
[1758277727067,1.40112007,116580.0,116570.0,0.65841717]
[1758277727764,0.62320007,116580.0,116570.0,0.65841717]
[1758277728470,1.40108007,116580.0,116570.0,0.65841717]
[1758277728766,0.62320007,116580.0,116570.0,0.65841717]
[1758277729070,1.40108007,116580.0,116570.0,0.65841717]
[1758277729472,1.40108007,116580.0,116570.0,0.74415737]
[1758277729672,1.40108007,116580.0,116570.0,0.65841717]
[1758277731870,0.62320007,116580.0,116570.0,0.65841717]
[1758277732069,0.3608929,116580.0,116570.0,1.26841717]
[1758277732370,1.40108007,116580.0,116570.0,1.26841717]
[1758277735576,1.40108007,116580.0,116570.0,1.35415737]
[1758277736971,0.62320007,116580.0,116570.0,1.35415737]
[1758277737175,1.40108007,116580.0,116570.0,1.35415737]
[1758277743285,0.3608929,116580.0,116570.0,1.35415737]
[1758277743488,1.40108007,116580.0,116570.0,1.35415737]
[1758277744789,1.40108007,116580.0,116570.0,1.26841717]
[1758277744993,1.1387729,116580.0,116570.0,1.00611]
[1758277745296,1.40108007,116580.0,116570.0,1.26841717]
[1758277747789,1.1387729,116580.0,116570.0,1.26839745]
[1758277753792,1.40106035,116580.0,116570.0,1.00611]
[1758277754196,1.40106035,116580.0,116570.0,0.64611]
[1758277754384,1.16179035,116580.0,116570.0,0.63313]
[1758277754590,0.1069703,116570.0,116560.0,0.46623817]